bitfinex/quotes_BTCUSD_20240623
["timestamp","ask_amount","ask_price","bid_price","bid_amount"]
[1719173452008,1.47654538,64200.0,64199.0,0.002935]
[1719173454923,1.42284074,64200.0,64199.0,0.002935]
[1719173455178,1.47668151,64200.0,64199.0,0.002935]
[1719173455358,1.47668477,64200.0,64199.0,0.002935]
[1719173455733,1.42428477,64200.0,64199.0,0.002935]
[1719173455937,1.47668477,64200.0,64199.0,0.002935]
[1719173457233,1.090376,64198.0,64197.0,0.090735]
[1719173457593,1.25860522,64198.0,64197.0,0.090735]
[1719173458132,1.25870342,64198.0,64197.0,0.090735]
[1719173458954,1.26270342,64198.0,64197.0,0.090735]
[1719173459702,1.26670342,64198.0,64197.0,0.090735]
[1719173460858,1.26686945,64198.0,64197.0,0.090735]
[1719173463544,1.21291695,64198.0,64197.0,0.090735]
[1719173463750,1.26680241,64198.0,64197.0,0.090735]
[1719173463945,1.21291695,64198.0,64197.0,0.090735]
[1719173464126,1.26680303,64198.0,64197.0,0.090735]
[1719173466236,1.31920303,64198.0,64197.0,0.090735]
[1719173466440,1.26680303,64198.0,64197.0,0.090735]
[1719173466643,1.3192881,64198.0,64197.0,0.090735]
[1719173469279,1.2668881,64198.0,64197.0,0.090735]
[1719173469487,1.3192881,64198.0,64197.0,0.090735]
[1719173471096,1.31928693,64198.0,64197.0,0.090735]
[1719173473003,1.26531695,64198.0,64197.0,0.090735]
[1719173473129,1.31930319,64198.0,64197.0,0.090735]
[1719173473331,1.26531695,64198.0,64197.0,0.090735]
[1719173473533,1.31931468,64198.0,64197.0,0.090735]
[1719173474868,1.26691468,64198.0,64197.0,0.090735]
[1719173475067,1.31931468,64198.0,64197.0,0.090735]
[1719173476110,1.26531695,64198.0,64197.0,0.090735]
[1719173476274,1.31917872,64198.0,64197.0,0.090735]
[1719173476499,1.31918118,64198.0,64197.0,0.090735]
[1719173479395,1.31920117,64198.0,64197.0,0.090735]
[1719173482538,1.31934615,64198.0,64197.0,0.090735]
[1719173482943,1.31941421,64198.0,64197.0,0.090735]
[1719173484211,1.31939845,64198.0,64197.0,0.090735]
[1719173488593,1.26531695,64198.0,64197.0,0.090735]
[1719173488820,1.31941878,64198.0,64197.0,0.090735]
[1719173490564,1.090442,64194.0,64193.0,0.076835]
[1719173490768,1.31272741,64194.0,64193.0,0.076835]
[1719173490986,1.32583206,64194.0,64193.0,0.076835]
[1719173491192,1.32583206,64194.0,64193.0,0.167135]
[1719173491687,1.22264665,64194.0,64193.0,0.167135]
[1719173491855,1.32583082,64194.0,64193.0,0.167135]
[1719173492057,1.22264665,64194.0,64193.0,0.167135]
[1719173492256,1.32583246,64194.0,64193.0,0.168135]
[1719173492619,1.32583246,64194.0,64193.0,0.169135]
[1719173493378,1.3258307,64194.0,64193.0,0.169135]
[1719173494478,1.32598646,64194.0,64193.0,0.169135]
[1719173494867,1.27358402,64194.0,64193.0,0.169135]
[1719173495069,1.32598372,64194.0,64193.0,0.169135]
[1719173496757,1.32598372,64194.0,64193.0,0.167135]
[1719173496965,1.23649786,64194.0,64193.0,0.167135]
[1719173497204,1.23949786,64194.0,64193.0,0.167135]
[1719173497614,1.23549786,64194.0,64193.0,0.167135]
[1719173497957,1.22880241,64194.0,64193.0,0.167135]
[1719173498237,1.23849798,64194.0,64193.0,0.167135]
[1719173501142,1.22880241,64194.0,64193.0,0.167135]
[1719173501293,1.23849798,64194.0,64193.0,0.167135]
[1719173501454,1.22880241,64194.0,64193.0,0.167135]
[1719173501661,1.23849798,64194.0,64193.0,0.167135]
[1719173504364,1.238498,64194.0,64193.0,0.167135]
[1719173507625,1.186098,64194.0,64193.0,0.167135]
[1719173508004,1.238498,64194.0,64193.0,0.167135]
[1719173509330,1.33197541,64194.0,64193.0,0.167135]
[1719173510323,1.28365956,64194.0,64193.0,0.167135]
[1719173510536,1.38683228,64194.0,64193.0,0.167135]
[1719173510785,1.33197513,64194.0,64193.0,0.167135]
[1719173510912,1.38683228,64194.0,64193.0,0.167135]
[1719173511819,1.34167075,64194.0,64193.0,0.167135]
[1719173512077,1.34167073,64194.0,64193.0,0.167135]
[1719173513540,1.34167192,64194.0,64193.0,0.167135]
[1719173516707,1.34167289,64194.0,64193.0,0.167135]
[1719173517485,1.34252289,64194.0,64193.0,0.167135]
[1719173519708,1.23934803,64194.0,64193.0,0.167135]
[1719173519931,1.34252389,64194.0,64193.0,0.167135]
[1719173520086,1.23934803,64194.0,64193.0,0.167135]
[1719173520291,1.34252389,64194.0,64193.0,0.167135]
[1719173520494,1.29405332,64194.0,64193.0,0.167135]
[1719173521425,1.29395733,64194.0,64193.0,0.167135]
[1719173522312,1.29373036,64194.0,64193.0,0.167135]
[1719173525210,1.29365869,64194.0,64193.0,0.167135]
[1719173526317,1.41054078,64194.0,64193.0,0.167135]
[1719173526925,1.40084516,64194.0,64193.0,0.167135]
[1719173528404,1.40084632,64194.0,64193.0,0.167135]
[1719173529051,1.40084632,64194.0,64193.0,0.159335]
[1719173530920,1.34844632,64194.0,64193.0,0.159335]
[1719173531088,1.40084632,64194.0,64193.0,0.159335]
[1719173531456,1.34655508,64194.0,64193.0,0.159335]
[1719173531622,1.40085111,64194.0,64193.0,0.159335]
[1719173534555,1.40088266,64194.0,64193.0,0.159335]
[1719173535507,1.40088266,64194.0,64193.0,0.0903]
[1719173536684,1.28398082,64194.0,64193.0,0.0903]
[1719173536905,1.40088163,64194.0,64193.0,0.0903]
[1719173537203,1.34848163,64194.0,64193.0,0.0903]
[1719173537442,1.40088163,64194.0,64193.0,0.0903]
[1719173537772,1.22965241,64194.0,64193.0,0.0903]
[1719173538018,1.40089579,64194.0,64193.0,0.0903]
[1719173538315,1.40102503,64194.0,64193.0,0.0903]
[1719173539460,1.34652081,64194.0,64193.0,0.0903]
[1719173539659,1.40105466,64194.0,64193.0,0.0903]
[1719173540960,1.40105941,64194.0,64193.0,0.0903]
[1719173541134,1.35621738,64194.0,64193.0,0.0903]
[1719173541336,1.40104912,64194.0,64193.0,0.0903]
[1719173541814,1.34864912,64194.0,64193.0,0.0903]
[1719173542015,1.40104912,64194.0,64193.0,0.0903]
[1719173543131,1.34864912,64194.0,64193.0,0.0903]
[1719173543305,1.40104912,64194.0,64193.0,0.0903]
[1719173543756,1.34864912,64194.0,64193.0,0.0903]
[1719173543994,1.40104912,64194.0,64193.0,0.0903]
[1719173544200,1.40109392,64194.0,64193.0,0.0903]
[1719173545621,1.34869392,64194.0,64193.0,0.0903]
[1719173545833,1.40109392,64194.0,64193.0,0.0903]
[1719173547235,1.2846001,64194.0,64193.0,0.0903]
[1719173547441,1.40146492,64194.0,64193.0,0.0903]
[1719173547797,1.40146393,64194.0,64193.0,0.0903]
[1719173549039,1.40147152,64194.0,64193.0,0.0903]
[1719173549238,1.40147152,64194.0,64193.0,0.1671]
[1719173549553,1.40147152,64194.0,64193.0,0.168035]
[1719173550319,1.22965241,64194.0,64193.0,0.168035]
[1719173550491,1.40147424,64194.0,64193.0,0.168035]
[1719173552710,1.40147424,64194.0,64193.0,0.091235]
[1719173553014,1.40147424,64194.0,64193.0,0.000935]
[1719173553188,1.40105037,64194.0,64193.0,0.000935]
[1719173553398,1.40105002,64194.0,64193.0,0.000935]
[1719173556508,1.40107812,64194.0,64193.0,0.000935]
[1719173556959,1.40107818,64194.0,64193.0,0.000935]
[1719173559807,1.40106454,64194.0,64193.0,0.000935]
[1719173562618,1.45815892,64194.0,64193.0,0.000935]
[1719173562879,1.4581964,64194.0,64193.0,0.000935]
[1719173563018,1.44850124,64194.0,64193.0,0.000935]
[1719173563225,1.34132575,64194.0,64193.0,0.000935]
[1719173565215,1.34132575,64194.0,64193.0,0.088535]
[1719173565448,1.30802575,64194.0,64193.0,0.088535]
[1719173565849,1.25302292,64194.0,64193.0,0.088535]
[1719173566140,1.30810857,64194.0,64193.0,0.088535]
[1719173566311,1.30810856,64194.0,64193.0,0.088535]
[1719173567550,1.42498321,64194.0,64193.0,0.088535]
[1719173567750,1.30810856,64194.0,64193.0,0.088535]
[1719173569114,1.30815827,64194.0,64193.0,0.088535]
[1719173572158,1.29846944,64194.0,64193.0,0.088535]
[1719173572452,1.30816447,64194.0,64193.0,0.088535]
[1719173575263,1.25302292,64194.0,64193.0,0.088535]
[1719173575452,1.30816366,64194.0,64193.0,0.088535]
[1719173575688,1.25302292,64194.0,64193.0,0.088535]
[1719173575865,1.30816356,64194.0,64193.0,0.088535]
[1719173578457,1.3081044,64194.0,64193.0,0.088535]
[1719173581061,1.30812001,64194.0,64193.0,0.088535]
[1719173582802,1.25572001,64194.0,64193.0,0.088535]
[1719173583127,1.30812001,64194.0,64193.0,0.088535]
[1719173584027,1.30826246,64194.0,64193.0,0.088535]
[1719173584190,1.30826246,64194.0,64193.0,0.108535]
[1719173584417,1.25586245,64194.0,64193.0,0.108535]
[1719173584621,1.30826245,64194.0,64193.0,0.108535]
[1719173585541,0.99670745,64194.0,64193.0,0.108535]
[1719173585987,0.99670745,64194.0,64193.0,0.088535]
[1719173586188,0.99670745,64194.0,64193.0,0.108535]
[1719173586386,0.99670745,64194.0,64193.0,0.088535]
[1719173587121,0.99674095,64194.0,64193.0,0.088535]
[1719173587449,0.99674095,64194.0,64193.0,0.179035]
[1719173590939,0.99674095,64194.0,64193.0,0.159035]
[1719173591188,0.99674095,64194.0,64193.0,0.179035]
[1719173593302,0.99684875,64194.0,64193.0,0.179035]
[1719173596916,0.94146792,64194.0,64193.0,0.179035]
[1719173597126,0.99684761,64194.0,64193.0,0.179035]
[1719173599721,0.99685248,64194.0,64193.0,0.179035]
[1719173600987,0.99685248,64194.0,64193.0,0.159035]
[1719173602704,0.94146792,64194.0,64193.0,0.159035]
[1719173602910,0.99684593,64194.0,64193.0,0.159035]
[1719173603121,0.94146792,64194.0,64193.0,0.159035]
[1719173603340,0.99680948,64194.0,64193.0,0.159035]
[1719173605846,0.94146792,64194.0,64193.0,0.159035]
[1719173606043,0.99679401,64194.0,64193.0,0.159035]
[1719173607347,0.99679401,64194.0,64193.0,0.179035]
[1719173609039,0.94146792,64194.0,64193.0,0.179035]
[1719173609223,0.9967923,64194.0,64193.0,0.179035]
[1719173610441,0.9443923,64194.0,64193.0,0.179035]
[1719173610639,0.9967923,64194.0,64193.0,0.179035]
[1719173612019,0.89876216,64194.0,64193.0,0.179035]
[1719173612282,0.99679022,64194.0,64193.0,0.179035]
[1719173612487,0.99679153,64194.0,64193.0,0.179035]
[1719173615091,0.94146792,64194.0,64193.0,0.179035]
[1719173615294,0.99683165,64194.0,64193.0,0.179035]
[1719173616571,0.63287665,64194.0,64193.0,0.179035]
[1719173616770,0.68527665,64194.0,64193.0,0.179035]
[1719173618377,0.68555003,64194.0,64193.0,0.179035]
[1719173619180,0.63315003,64194.0,64193.0,0.179035]
[1719173619393,0.68555003,64194.0,64193.0,0.179035]
[1719173621459,0.62991292,64194.0,64193.0,0.179035]
[1719173621625,0.68610461,64194.0,64193.0,0.179035]
[1719173621838,0.62991292,64194.0,64193.0,0.179035]
[1719173622045,0.68610461,64194.0,64193.0,0.179035]
[1719173623261,0.68605674,64194.0,64193.0,0.179035]
[1719173624571,0.68605046,64194.0,64193.0,0.179035]
[1719173625574,0.37449546,64194.0,64193.0,0.179035]
[1719173627707,0.3745166,64194.0,64193.0,0.179035]
[1719173628538,0.3745166,64194.0,64193.0,0.108535]
[1719173628702,0.3745166,64194.0,64193.0,0.176135]
[1719173630297,0.17632982,64194.0,64193.0,0.176135]
[1719173630443,0.22872982,64194.0,64193.0,0.176135]
[1719173630654,0.17251041,64194.0,64193.0,0.176135]
[1719173630854,0.22874279,64194.0,64193.0,0.176135]
[1719173631057,0.17251041,64194.0,64193.0,0.176135]
[1719173631240,0.22874279,64194.0,64193.0,0.176135]
[1719173633765,0.17251041,64194.0,64193.0,0.176135]
[1719173633966,0.22874278,64194.0,64193.0,0.176135]
[1719173636309,0.38451978,64194.0,64193.0,0.176135]
[1719173636789,0.01355157,64194.0,64193.0,0.176135]
[1719173637016,0.06345397,64194.0,64193.0,0.176135]
[1719173638032,0.06345397,64194.0,64193.0,0.156135]
[1719173638033,0.21923097,64194.0,64193.0,0.156135]
[1719173638237,0.27163097,64194.0,64193.0,0.088535]
[1719173638437,0.27163097,64194.0,64193.0,0.108535]
[1719173638923,0.37163097,64194.0,64193.0,0.108535]
[1719173640237,0.37163155,64194.0,64193.0,0.108535]
[1719173640356,0.37163155,64194.0,64193.0,0.10869061]
[1719173640557,0.37164722,64194.0,64193.0,0.10869061]
[1719173642582,0.37375691,64194.0,64193.0,0.10869061]
[1719173643008,0.37375691,64194.0,64193.0,0.10498461]
[1719173645650,0.37379237,64194.0,64193.0,0.10498461]
[1719173646101,0.37379237,64194.0,64193.0,0.08498461]
[1719173647900,0.68534737,64194.0,64193.0,0.08498461]
[1719173648073,0.68534737,64194.0,64193.0,0.10498461]
[1719173648699,0.63413357,64194.0,64193.0,0.10498461]
[1719173648893,0.68534827,64194.0,64193.0,0.10498461]
[1719173649095,0.68534851,64194.0,64193.0,0.08498461]
[1719173651795,0.63413357,64194.0,64193.0,0.08498461]
[1719173652000,0.68532676,64194.0,64193.0,0.08498461]
[1719173654931,0.63413357,64194.0,64193.0,0.08498461]
[1719173655136,0.68529997,64194.0,64193.0,0.08498461]
[1719173656735,0.68529997,64194.0,64193.0,0.10498461]
[1719173657064,0.68529996,64194.0,64193.0,0.10498461]
[1719173657263,0.68529996,64194.0,64193.0,0.10498463]
[1719173657609,0.68529996,64194.0,64193.0,0.08498463]
[1719173658275,0.68526057,64194.0,64193.0,0.08498463]
[1719173658691,0.67556601,64194.0,64193.0,0.08498463]
[1719173658902,0.68526057,64194.0,64193.0,0.08498463]
[1719173659958,0.68523439,64194.0,64193.0,0.08498463]
[1719173661392,0.68518471,64194.0,64193.0,0.08498463]
[1719173661620,0.66154579,64194.0,64193.0,0.08498463]
[1719173661934,0.68129422,64194.0,64193.0,0.08498463]
[1719173663081,0.64799422,64194.0,64193.0,0.08498463]
[1719173664316,0.64799422,64194.0,64193.0,0.10498463]
[1719173667626,0.59694308,64194.0,64193.0,0.10498463]
[1719173667852,0.64825413,64194.0,64193.0,0.10498463]
[1719173668033,0.64825383,64194.0,64193.0,0.10498463]
[1719173670834,0.64828841,64194.0,64193.0,0.10498463]
[1719173673994,0.64830491,64194.0,64193.0,0.10498463]
[1719173674605,0.64830491,64194.0,64193.0,0.10591963]
[1719173676987,0.59694308,64194.0,64193.0,0.10591963]
[1719173677197,0.6291064,64194.0,64193.0,0.10591963]
[1719173677395,0.63024308,64194.0,64193.0,0.10591963]
[1719173677602,0.68150627,64194.0,64193.0,0.10591963]
[1719173679381,0.68150627,64194.0,64193.0,0.08591963]
[1719173680271,0.68157825,64194.0,64193.0,0.08591963]
[1719173681401,0.68157825,64194.0,64193.0,0.10591963]
[1719173682021,0.68157825,64194.0,64193.0,0.08591963]
[1719173682418,0.99313325,64194.0,64193.0,0.08591963]
[1719173683022,0.94073325,64194.0,64193.0,0.08591963]
[1719173683224,0.99218661,64194.0,64193.0,0.08591963]
[1719173683879,0.99218661,64194.0,64193.0,0.10591963]
[1719173684056,0.99218661,64194.0,64193.0,0.08591963]
[1719173684216,0.99218661,64194.0,64193.0,0.10591963]
[1719173685690,0.99218661,64194.0,64193.0,0.08591963]
[1719173686583,0.99227867,64194.0,64193.0,0.08591963]
[1719173686730,0.94179808,64194.0,64193.0,0.08591963]
[1719173686890,0.99228587,64194.0,64193.0,0.08591963]
[1719173687613,0.99228587,64194.0,64193.0,0.10591963]
[1719173687824,0.93988587,64194.0,64193.0,0.10591963]
[1719173688052,0.99228587,64194.0,64193.0,0.10591963]
[1719173688798,0.93988587,64194.0,64193.0,0.10591963]
[1719173689003,0.99228587,64194.0,64193.0,0.10591963]
[1719173689379,0.94179808,64194.0,64193.0,0.10591963]
[1719173689582,0.99296066,64194.0,64193.0,0.10591963]
[1719173690349,0.99302079,64194.0,64193.0,0.10591963]
[1719173692629,0.94179808,64194.0,64193.0,0.10591963]
[1719173692805,0.9929472,64194.0,64193.0,0.10591963]
[1719173693555,0.9929472,64194.0,64193.0,0.17641963]
[1719173695638,0.94179808,64194.0,64193.0,0.17641963]
[1719173695875,0.99319875,64194.0,64193.0,0.17641963]
[1719173696077,0.94179808,64194.0,64193.0,0.17641963]
[1719173696309,0.99304269,64194.0,64193.0,0.17641963]
[1719173697474,0.99298032,64194.0,64193.0,0.17641963]
[1719173698775,0.94179808,64194.0,64193.0,0.17641963]
[1719173698981,0.99300766,64194.0,64193.0,0.17641963]
[1719173701035,1.1098769,64194.0,64193.0,0.17641963]
[1719173701253,1.06836181,64194.0,64193.0,0.17641963]
[1719173701407,1.10988824,64194.0,64193.0,0.17641963]
[1719173701839,1.06836181,64194.0,64193.0,0.17641963]
[1719173704121,0.75680681,64194.0,64193.0,0.17641963]
[1719173704317,0.63024308,64194.0,64193.0,0.17641963]
[1719173704520,0.75679304,64194.0,64193.0,0.17641963]
[1719173704683,0.76648809,64194.0,64193.0,0.17641963]
[1719173704886,0.75679274,64194.0,64193.0,0.17641963]
[1719173705891,0.75679022,64194.0,64193.0,0.17641963]
[1719173706126,0.79825237,64194.0,64193.0,0.17641963]
[1719173707234,0.75679021,64194.0,64193.0,0.17641963]
[1719173707418,0.63024308,64194.0,64193.0,0.17641963]
[1719173707649,0.75678785,64194.0,64193.0,0.17641963]
[1719173709081,0.75678785,64194.0,64193.0,0.15641963]
[1719173709302,0.63993842,64194.0,64193.0,0.15641963]
[1719173709490,0.63993842,64194.0,64193.0,0.17641963]
[1719173709943,0.63993842,64194.0,64193.0,0.08591963]
[1719173709944,0.95149342,64194.0,64193.0,0.08591963]
[1719173710075,1.06834285,64194.0,64193.0,0.08591963]
[1719173710519,1.06833812,64194.0,64193.0,0.08591963]
[1719173711151,1.06833812,64194.0,64193.0,0.00109063]
[1719173711359,1.10897384,64194.0,64193.0,0.00109063]
[1719173713178,1.10810115,64194.0,64193.0,0.00109063]
[1719173713376,1.05570115,64194.0,64193.0,0.02109063]
[1719173713588,1.06833541,64194.0,64193.0,0.02109063]
[1719173714012,1.06833548,64194.0,64193.0,0.02109063]
[1719173714190,1.10896521,64194.0,64193.0,0.02109063]
[1719173715010,1.42052021,64194.0,64193.0,0.02109063]
[1719173715209,1.42052005,64194.0,64193.0,0.02109063]
[1719173715985,0.98592581,64194.0,64193.0,0.02109063]
[1719173716306,1.08592581,64194.0,64193.0,0.02109063]
[1719173716513,1.03560083,64194.0,64193.0,0.02109063]
[1719173716748,1.08598312,64194.0,64193.0,0.02109063]
[1719173717106,0.91875884,64194.0,64193.0,0.02109063]
[1719173717301,1.08592885,64194.0,64193.0,0.02109063]
[1719173717510,1.39748385,64194.0,64193.0,0.02109063]
[1719173718811,1.39748385,64194.0,64193.0,0.00109063]
[1719173719008,1.28064249,64194.0,64193.0,0.00109063]
[1719173719924,1.28063956,64194.0,64193.0,0.00109063]
[1719173722962,1.28065798,64194.0,64193.0,0.00109063]
[1719173723373,1.23031384,64194.0,64193.0,0.00109063]
[1719173723571,1.28064851,64194.0,64193.0,0.00109063]
[1719173726124,1.28009554,64194.0,64193.0,0.00109063]
[1719173727438,1.22769554,64194.0,64193.0,0.00109063]
[1719173727638,1.28009554,64194.0,64193.0,0.00109063]
[1719173729074,1.23031384,64194.0,64193.0,0.00109063]
[1719173729206,1.28026779,64194.0,64193.0,0.00109063]
[1719173729882,1.28026779,64194.0,64193.0,0.00109064]
[1719173732225,1.23031384,64194.0,64193.0,0.00109064]
[1719173732382,1.28024844,64194.0,64193.0,0.00109064]
[1719173732542,1.23031384,64194.0,64193.0,0.00109064]
[1719173732743,1.28024808,64194.0,64193.0,0.00109064]
[1719173735345,1.28024333,64194.0,64193.0,0.00109064]
[1719173737363,1.28109333,64194.0,64193.0,0.00109064]
[1719173739096,1.39794065,64194.0,64193.0,0.00109064]
[1719173739287,1.28109333,64194.0,64193.0,0.00109064]
[1719173740293,1.28109333,64194.0,64193.0,0.09219064]
[1719173741550,1.23116384,64194.0,64193.0,0.09219064]
[1719173741740,1.28084353,64194.0,64193.0,0.09219064]
[1719173741938,1.28084333,64194.0,64193.0,0.09219064]
[1719173744761,1.28077353,64194.0,64193.0,0.09219064]
[1719173747849,1.28095996,64194.0,64193.0,0.09219064]
[1719173751430,1.28097752,64194.0,64193.0,0.09219064]
[1719173754037,1.28063426,64194.0,64193.0,0.09219064]
[1719173755925,1.59218926,64194.0,64193.0,0.09219064]
[1719173757154,1.59144732,64194.0,64193.0,0.09219064]
[1719173757352,1.27989232,64194.0,64193.0,0.09219064]
[1719173758317,1.22749232,64194.0,64193.0,0.09219064]
[1719173758480,1.27989232,64194.0,64193.0,0.09219064]
[1719173759214,1.59144732,64194.0,64193.0,0.09219064]
[1719173760765,1.54271884,64194.0,64193.0,0.09219064]
[1719173760971,1.59140236,64194.0,64193.0,0.09219064]
[1719173762614,1.55241485,64194.0,64193.0,0.09219064]
[1719173762825,1.59143795,64194.0,64193.0,0.09219064]
[1719173765762,1.59143986,64194.0,64193.0,0.09219064]
[1719173765889,1.5524148,64194.0,64193.0,0.09219064]
[1719173766096,1.59143986,64194.0,64193.0,0.09219064]
[1719173767907,1.54271884,64194.0,64193.0,0.09219064]
[1719173768123,1.59144815,64194.0,64193.0,0.09219064]
[1719173768950,1.59152935,64194.0,64193.0,0.09219064]
[1719173770489,1.61953795,64194.0,64193.0,0.09219064]
[1719173772076,1.61966749,64194.0,64193.0,0.09219064]
[1719173775144,1.57072744,64194.0,64193.0,0.09219064]
[1719173775371,1.61958847,64194.0,64193.0,0.09219064]
[1719173777410,1.57072744,64194.0,64193.0,0.09219064]
[1719173777565,1.61950568,64194.0,64193.0,0.09219064]
[1719173778327,1.61947255,64194.0,64193.0,0.09219064]
[1719173778734,1.61947276,64194.0,64193.0,0.09219064]
[1719173780209,1.5671885,64194.0,64193.0,0.09219064]
[1719173780509,1.6195885,64194.0,64193.0,0.09219064]
[1719173781640,1.61955947,64194.0,64193.0,0.09219064]
[1719173783767,1.56715947,64194.0,64193.0,0.09219064]
[1719173783908,1.61955947,64194.0,64193.0,0.09219064]
[1719173784517,1.61958533,64194.0,64193.0,0.09219064]
[1719173786668,1.56718533,64194.0,64193.0,0.09219064]
[1719173786892,1.61958533,64194.0,64193.0,0.09219064]
[1719173787710,1.61958349,64194.0,64193.0,0.09219064]
[1719173788251,1.61958347,64194.0,64193.0,0.09219064]
[1719173790666,1.57072744,64194.0,64193.0,0.09219064]
[1719173790887,1.6196764,64194.0,64193.0,0.09219064]
[1719173793481,1.6196764,64194.0,64193.0,0.00109064]
[1719173793857,1.6195453,64194.0,64193.0,0.00109064]
[1719173794878,1.5671453,64194.0,64193.0,0.00109064]
[1719173795095,1.6195453,64194.0,64193.0,0.08919064]
[1719173796102,1.7356453,64194.0,64193.0,0.00109064]
[1719173797059,1.73600423,64194.0,64193.0,0.00109064]
[1719173797189,1.7360048,64194.0,64193.0,0.00109064]
[1719173798431,1.7360048,64194.0,64193.0,0.00209064]
[1719173798642,1.7420048,64194.0,64193.0,0.00209064]
[1719173799257,1.7490048,64194.0,64193.0,0.00309064]
[1719173799675,1.88927753,64194.0,64193.0,0.00309064]
[1719173799879,1.77317753,64194.0,64193.0,0.00309064]
[1719173800092,1.77319622,64194.0,64193.0,0.00309064]
[1719173803025,1.58372744,64194.0,64193.0,0.00309064]
[1719173803225,1.77323397,64194.0,64193.0,0.00309064]
[1719173804541,1.63296471,64194.0,64193.0,0.00309064]
[1719173806115,1.59342555,64194.0,64193.0,0.00309064]
[1719173806369,1.63296445,64194.0,64193.0,0.00309064]
[1719173806574,1.63297127,64194.0,64193.0,0.00309064]
[1719173809359,1.63298031,64194.0,64193.0,0.00309064]
[1719173812537,1.62327401,64194.0,64193.0,0.00309064]
[1719173812773,1.63297217,64194.0,64193.0,0.00309064]
[1719173815164,1.35651142,64194.0,64193.0,0.00309064]
[1719173815372,1.36453482,64194.0,64193.0,0.00309064]
[1719173815602,1.36453534,64194.0,64193.0,0.00309064]
[1719173815802,1.67609034,64194.0,64193.0,0.00309064]
[1719173816016,1.6236942,64194.0,64193.0,0.00309064]
[1719173816218,1.6760942,64194.0,64193.0,0.00309064]
[1719173817391,1.67610162,64194.0,64193.0,0.00309064]
[1719173818722,1.62684509,64194.0,64193.0,0.00309064]
[1719173818935,1.67609388,64194.0,64193.0,0.00309064]
[1719173821210,1.67609389,64194.0,64193.0,0.00309064]
[1719173824058,1.62684509,64194.0,64193.0,0.00309064]
[1719173824289,1.6760941,64194.0,64193.0,0.00309064]
[1719173824486,1.62684509,64194.0,64193.0,0.00309064]
[1719173824687,1.67609454,64194.0,64193.0,0.00309064]
[1719173827331,1.67610604,64194.0,64193.0,0.00309064]
[1719173828156,1.81639115,64194.0,64193.0,0.00309064]
[1719173830367,1.62684509,64194.0,64193.0,0.00309064]
[1719173830570,1.81645474,64194.0,64193.0,0.00309064]
[1719173833533,1.62684509,64194.0,64193.0,0.00309064]
[1719173833738,1.81628227,64194.0,64193.0,0.00309064]
[1719173833974,1.62684509,64194.0,64193.0,0.00309064]
[1719173834285,1.81638665,64194.0,64193.0,0.00309064]
[1719173835047,1.76398665,64194.0,64193.0,0.00309064]
[1719173835253,1.80050202,64194.0,64193.0,0.00309064]
[1719173835404,1.80054386,64194.0,64193.0,0.00309064]
[1719173836514,1.61096046,64194.0,64193.0,0.00309064]
[1719173836768,1.80085181,64194.0,64193.0,0.00309064]
[1719173837566,1.80085425,64194.0,64193.0,0.00309064]
[1719173838614,1.66044572,64194.0,64193.0,0.00309064]
[1719173839813,1.66046896,64194.0,64193.0,0.00309064]
[1719173842930,1.70025206,64194.0,64193.0,0.00309064]
[1719173845974,1.70025894,64194.0,64193.0,0.00309064]
[1719173847639,1.64785894,64194.0,64193.0,0.00309064]
[1719173847834,1.70025894,64194.0,64193.0,0.00309064]
[1719173849009,1.65074982,64194.0,64193.0,0.00309064]
[1719173849205,1.70013857,64194.0,64193.0,0.00309064]
[1719173852166,1.65074982,64194.0,64193.0,0.00309064]
[1719173852333,1.69994422,64194.0,64193.0,0.00309064]
[1719173855328,1.69998353,64194.0,64193.0,0.00309064]
[1719173857911,1.66019417,64194.0,64193.0,0.00309064]
[1719173858321,1.66021155,64194.0,64193.0,0.00309064]
[1719173861573,1.66027041,64194.0,64193.0,0.00309064]
[1719173861948,1.66027046,64194.0,64193.0,0.00309064]
[1719173863136,1.66031772,64194.0,64193.0,0.00309064]
[1719173865390,1.65158492,64194.0,64193.0,0.00309064]
[1719173867842,1.65146081,64194.0,64193.0,0.00309064]
[1719173870702,1.65146081,64194.0,64193.0,0.09799064]
[1719173870927,1.60222766,64194.0,64193.0,0.09799064]
[1719173871205,1.65152842,64194.0,64193.0,0.09799064]
[1719173871401,1.60222766,64194.0,64193.0,0.09799064]
[1719173871629,1.65150962,64194.0,64193.0,0.09799064]
[1719173873175,1.59910962,64194.0,64193.0,0.09799064]
[1719173873402,1.65150962,64194.0,64193.0,0.09799064]
[1719173874136,1.65150968,64194.0,64193.0,0.09799064]
[1719173877215,1.60222766,64194.0,64193.0,0.09799064]
[1719173877385,1.65160135,64194.0,64193.0,0.09799064]
[1719173880233,1.65179331,64194.0,64193.0,0.09799064]
[1719173880434,1.59939331,64194.0,64193.0,0.09799064]
[1719173880738,1.65179331,64194.0,64193.0,0.09799064]
[1719173882493,1.60222766,64194.0,64193.0,0.09799064]
[1719173882686,1.65179561,64194.0,64193.0,0.09799064]
[1719173885678,1.65187932,64194.0,64193.0,0.09799064]
[1719173888798,1.60222766,64194.0,64193.0,0.09799064]
[1719173889002,1.65187633,64194.0,64193.0,0.09799064]
[1719173889156,1.65187643,64194.0,64193.0,0.09799064]
[1719173891963,1.651874,64194.0,64193.0,0.09799064]
[1719173894962,1.65179893,64194.0,64193.0,0.09799064]
[1719173897831,1.65176306,64194.0,64193.0,0.09799064]
[1719173898235,1.60222766,64194.0,64193.0,0.09799064]
[1719173898454,1.65176306,64194.0,64193.0,0.09799064]
[1719173898651,1.60222766,64194.0,64193.0,0.09799064]
[1719173898849,1.65177648,64194.0,64193.0,0.09799064]
[1719173901288,1.6517822,64194.0,64193.0,0.09799064]
[1719173902345,1.65178365,64194.0,64193.0,0.09799064]
[1719173904479,1.60222766,64194.0,64193.0,0.09799064]
[1719173904677,1.65180097,64194.0,64193.0,0.09799064]
[1719173905533,1.60222766,64194.0,64193.0,0.09799064]
[1719173905840,1.65180852,64194.0,64193.0,0.09799064]
[1719173905983,1.59940852,64194.0,64193.0,0.09799064]
[1719173906178,1.65180852,64194.0,64193.0,0.09799064]
[1719173909768,1.60222766,64194.0,64193.0,0.09799064]
[1719173909969,2.42870699,64194.0,64193.0,0.00309064]
[1719173910244,1.402105,64189.0,64188.0,0.000935]
[1719173910404,0.467398,64185.0,64184.0,0.071135]
[1719173910728,0.467398,64185.0,64184.0,0.000935]
[1719173910729,1.70431933,64185.0,64184.0,0.000935]
[1719173910933,1.71892692,64185.0,64184.0,0.000935]
[1719173912075,1.73092692,64185.0,64184.0,0.001935]
[1719173913115,1.74492692,64185.0,64184.0,0.002935]
[1719173913522,2.05652592,64185.0,64184.0,0.002935]
[1719173913743,2.19682286,64185.0,64184.0,0.002935]
[1719173913964,2.05638098,64185.0,64184.0,0.002935]
[1719173914539,2.19659283,64185.0,64184.0,0.002935]